Cogmind - Beta 17.1 @@@ ROGUE MODE // 2026.09.14 @ 23:57:58 Player: 7H-NLC Result: Self-destructed Performance ------------- Evolutions (2) 1000 Regions Visited (7) 1400 Robots Destroyed (64) 320 Value Destroyed (2115) 2115 Prototype IDs (29) 580 Alien Tech Used (0) 0 Bonus (1531) 1531 TOTAL SCORE: 6946 Bonus ------- High Alert Combat Kills 221 Follower Combat Kills 110 Entered Garrisons 200 Used RIF Installer 1000 Cogmind --------- Core Integrity 173/550 Matter 426/500 Energy 44/100 System Corruption 0% Temperature Cool (1) Movement Hovering (60) Location -8/Materials Parts ------- > --- POWER (1) -------- (None) > --- PROPULSION (3) --- Gravmag System > --- UTILITY (4) ------ Small Storage Unit High-capacity Matter Pod Relay Coupler [Swarmer] (29) > --- WEAPON (3) ------- (None) > --- INVENTORY (8) ---- Cooled Airjet Medium Storage Unit Hardened Light Armor Plating Heavy Ion Cannon Firepult Makeshift Axe Peak State ------------ > --- POWER ------------ Light Ion Engine > --- PROPULSION ------- Advanced Treads Advanced Treads Cooled Airjet > --- UTILITY ---------- High-capacity Storage Unit Improved Targeting Computer Improved Light Armor Plating Reactive Plating > --- WEAPON ----------- Precision Assault Rifle Precision Assault Rifle Makeshift Axe > --- INVENTORY -------- Improved Treads Gravmag System Gravmag System Combat Airjet Cryofiber Web High-capacity Matter Pod High-capacity Matter Pod High-capacity Matter Pod Seismic Detector Makeshift Salvage Targeting Computer Launcher Guidance Computer Target Analyzer Makeshift Cloaking Device Hardened Light Armor Plating Firepult Minigun Precision Assault Rifle Mini Grenade Launcher Heavy Hammer [Rating: 42] Favorites ----------- Power Nuclear Core Engine Light Deuterium Engine Power Core Nuclear Core Propulsion Advanced Treads Treads Advanced Treads Wheel Compact Wheel Hover Unit Cooled Airjet Utility High-capacity Storage Unit Device Seismic Detector Storage High-capacity Storage Unit Processor Improved Targeting Computer Hackware Relay Coupler [Swarmer] Protection Light Armor Plating Weapon Precision Assault Rifle Energy Cannon Firepult Ballistic Gun Precision Assault Rifle Ballistic Cannon Assault Cannon Launcher Mini Grenade Launcher Impact Weapon Heavy Hammer Slashing Weapon Makeshift Axe Build | -11 -10 -10 -10 -9 -8 -8 -8 ------- Run | Yrd Mat Min Exi Min Mat Gar Mat Slots Evolved 4 | . . . . . 4 . . Power . | . . . . . . . . Propulsion 1 | . . . . . 1 . . Utility 2 | . . . . . 2 . . Weapon 1 | . . . . . 1 . . Parts Attached 56 | 7 9 5 2 4 11 14 4 Power 7 | 1 1 1 . . 2 1 1 Engine 4 | 1 1 1 . . 1 . . Core 3 | . . . . . 1 1 1 Reactor . | . . . . . . . . Propulsion 18 | 2 4 2 . . 3 5 2 Treads 9 | . 4 2 . . 2 1 . Leg . | . . . . . . . . Wheel 3 | 2 . . . . . . 1 Hover 6 | . . . . . 1 4 1 Flight . | . . . . . . . . Utility 15 | 2 2 . . 1 2 7 1 Device 2 | 1 . . . . . 1 . Storage 5 | 1 1 . . . . 2 1 Processor 1 | . . . . . 1 . . Hackware 3 | . . . . . . 3 . Protection 4 | . 1 . . 1 1 1 . Artifact . | . . . . . . . . Weapon 16 | 2 2 2 2 3 4 1 . Energy Gun . | . . . . . . . . Energy Cannon 1 | . . . . 1 . . . Ballistic Gun 8 | 2 . 1 . . 4 1 . Ballistic Cannon 1 | . . 1 . . . . . Launcher 2 | . . . . 2 . . . Special Weapon . | . . . . . . . . Impact Weapon 3 | . 2 . 1 . . . . Slashing Weapon 1 | . . . 1 . . . . Piercing Weapon . | . . . . . . . . Special Melee Weapon . | . . . . . . . . Unidentified Prototypes 2 | . . . . . 2 . . Parts Lost 25 | . 3 . . 5 . 8 9 Power 3 | . 1 . . 1 . . 1 Propulsion 9 | . 2 . . . . 3 4 Utility 6 | . . . . 1 . 4 1 Weapon 7 | . . . . 3 . 1 3 Highest Loss Streak 9 | . 1 . . 4 . 5 9 To Critical Strikes . | . . . . . . . . Average Backups 14 | 1 10 17 19 18 18 10 6 Power . | . . . . . . . . Propulsion 3 | 1 2 2 3 4 5 3 1 Utility 6 | . 4 9 9 9 7 2 1 Weapon 4 | . 2 6 6 4 4 3 2 Tool/Special . | . . . . . . . . Unused Backups 22 | . 2 3 5 . 6 4 2 Power 1 | . . . . . . 1 . Propulsion 2 | . 1 . . . 1 . . Utility 13 | . 1 2 4 . 4 1 1 Weapon 6 | . . 1 1 . 1 2 1 Tool/Special . | . . . . . . . . Average Slot Usage (%) 93 | . 98 100 100 93 93 82 88 Engine 8 | . 13 14 14 10 3 . . Core 2 | . . . . . 2 9 6 Treads 22 | . 26 28 28 28 26 12 . Hover 4 | . . . . . . 12 23 Device 3 | . 6 . . . 5 5 . Storage 11 | . 14 14 14 14 9 5 17 Processor 1 | . . . . . 7 1 . Protection 10 | . 7 14 14 14 12 9 . Ballistic Gun 15 | . 15 16 14 5 16 18 15 Impact Weapon 5 | . 12 10 6 7 . . . Slashing Weapon 4 | . . . 4 8 9 8 5 Peak Build Rating 42 | 7 12 18 22 37 42 42 42 Average Rating 23 | 5 10 12 19 22 35 36 35 On Entrance 20 | . 7 12 18 22 22 40 42 Avg Prop Armor Cover (%) 13 | . . . . . . . 13 Naked Turns . | . . . . . . . . Heaviest Build 73 | 12 53 55 55 61 67 73 25 Greatest Support 68 | 26 46 46 44 44 67 68 28 Greatest Overweight (x) 7 | 1 1 1 1 1 1 7 . Average Overweight (x) . | . . 1 1 1 . . . Largest Inventory Capacity 20 | 8 20 20 20 20 20 20 8 Average Capacity 16 | 7 13 20 20 20 20 12 7 Most Carried 20 | 4 16 20 20 20 20 20 8 Average Carried 15 | 2 10 17 19 19 19 11 7 Final Capacity 20 | 8 20 20 20 20 20 5 8 Final Carried 20 | 4 16 20 20 20 20 5 7 Class Distribution -------------------- 94% | Mutant Dominant Class ---------------- Mutant | -10/Materials Mutant | -10/Mines Mutant | -10/Exiles Mutant | -9/Mines Mutant | -8/Materials Mutant | -8/Garrison Mutant | -8/Materials Resources | -11 -10 -10 -10 -9 -8 -8 -8 ----------- Run | Yrd Mat Min Exi Min Mat Gar Mat Matter Collected 2198 | 294 660 104 254 127 140 552 67 Remotely . | . . . . . . . . Salvage Created 1731 | 125 423 62 361 45 82 538 95 Parts 88 | 6 8 7 9 4 6 26 22 Haulers Intercepted 1 | . 1 . . . . . . Recyclers Shooed . | . . . . . . . . Parts Field Recycled . | . . . . . . . . Retrieved Matter . | . . . . . . . . Parts Self-Destructed . | . . . . . . . . Prevented . | . . . . . . . . Parts Restored . | . . . . . . . . Kills | -11 -10 -10 -10 -9 -8 -8 -8 ------- Run | Yrd Mat Min Exi Min Mat Gar Mat Combat Hostiles Destroyed 55 | . 10 3 . 3 1 25 13 Melee 11 | . 6 . . 1 1 2 1 Guns 13 | . . 3 . . . 9 1 Cannons 2 | . . . . 1 . . 1 AOE 25 | . . . . 1 . 14 10 Classes Destroyed 11 | 2 5 . . 2 1 . 1 Worker 4 | . 2 . . 1 1 . . Tunneler 3 | 2 . 1 . . . . . Hauler 1 | . 1 . . . . . . Recycler 1 | 1 . . . . . . . Watcher 1 | . 1 . . . . . . Swarmer 25 | . 2 3 . . . 10 10 Cutter 3 | . . . . . . . 3 Grunt 22 | . 8 . . . . 14 . Sentry 2 | . . . . . 1 1 . Demolisher 2 | . . . . 2 . . . Assembled 1 | . . . . 1 . . . Best Kill Streak 9 | 2 4 3 . 2 2 9 6 Combat Bots Only 9 | . 4 3 . 1 1 9 6 Max Kills in Single Turn 3 | 1 1 1 . 1 1 3 3 Gunslinging . | . . . . . . . . Exploded 3 | . . . . 1 . 3 3 Melee 1 | . 1 . . 1 1 1 1 Uniques/NPCs Destroyed . | . . . . . . . . Combat | -11 -10 -10 -10 -9 -8 -8 -8 -------- Run | Yrd Mat Min Exi Min Mat Gar Mat Hostile Shots Fired 336 | . 92 8 . 23 14 125 74 Missed 100 | . 29 4 . 1 3 44 19 Hits 236 | . 63 4 . 22 11 81 55 Melee 4 | . . . . . . . 4 Projectile 232 | . 63 4 . 22 11 81 51 AOE 19 | . . . . 19 . . . Critical Strikes 9 | . . . . . 2 4 3 Damage Taken 3663 | 7 647 31 . 788 144 1252 794 Core 547 | . 126 . . 44 15 143 219 Absorbed by Shields 9 | . . . . . . 9 . Ignored by Resistances 28 | . . . . 12 16 . . Core Remaining (%) 66 | 100 . . . 32 . . . Volleys Fired 92 | 7 3 16 . 14 . 43 9 Largest 2 | 2 1 2 . 2 . 2 2 Hottest 250 | 40 20 40 . 250 . 56 250 Shots Fired 136 | 14 3 20 . 17 . 72 10 Gun 90 | 14 3 8 . 3 . 58 4 Cannon 26 | . . 12 . 13 . . 1 Launcher 20 | . . . . 1 . 14 5 Special . | . . . . . . . . Kinetic 114 | 14 3 20 . 15 . 58 4 Thermal 2 | . . . . 1 . . 1 Explosive 20 | . . . . 1 . 14 5 Electromagnetic . | . . . . . . . . Robot Hit Streak 18 | 3 1 2 . 4 . 18 2 Robot Miss Streak 4 | 2 2 3 . 4 . 4 3 Penetration Max . | . . . . . . . . Secondary Targets . | . . . . . . . . Shots Hit Robots 139 | 7 34 4 22 9 8 50 5 Core Hits 82 | 5 5 4 5 6 2 45 10 Critical Kills 2 | . . . 2 . . . . Critical Parts Destroyed 7 | . 4 . 3 . . . . Critical Strikes 9 | . 4 . 5 . . . . Smash 9 | . 4 . 5 . . . . Melee Attacks 173 | . 47 1 22 5 18 74 6 Impact 71 | . 47 1 22 1 . . . Slashing 102 | . . . . 4 18 74 6 Piercing . | . . . . . . . . Sneak Attacks 9 | . 5 1 . . 2 1 . Combat Hostiles . | . . . . . . . . Follow-up Attacks 1 | . . . . 1 . . . Damage Inflicted 7543 | 87 1568 106 1825 321 380 2380 876 Guns 1040 | 73 10 34 . . . 865 58 Cannons 162 | . . . . 140 . . 22 Explosions 2187 | . . . . 83 . 1352 752 Melee 4140 | . 1558 72 1825 98 380 163 44 Ramming 14 | 14 . . . . . . . Kinetic 1180 | 73 10 34 . 140 . 865 58 Thermal 135 | . . . . 16 . . 119 Explosive 2074 | . . . . 67 . 1352 655 Electromagnetic . | . . . . . . . . Impact 3501 | . 1558 72 1825 46 . . . Slashing 639 | . . . . 52 380 163 44 Piercing . | . . . . . . . . Highest Corruption . | . . . . . . . . Average Corruption . | . . . . . . . . Corruption Purged . | . . . . . . . . Corruption Blocked . | . . . . . . . . Overload Shots . | . . . . . . . . Overflow Damage 1538 | . 649 . 658 44 36 . 151 Projectiles . | . . . . . . . . Explosions 171 | . . . . 44 . . 127 Melee 1367 | . 649 . 658 . 36 . 24 Knockbacks 15 | . 6 . 8 1 . . . Impact 14 | . 6 . 8 . . . . Kinetic 1 | . . . . 1 . . . Secondary . | . . . . . . . . Self-Inflicted Damage 126 | 7 . . . . . 4 115 Shots 4 | . . . . . . 1 3 Rammed 1 | 1 . . . . . . . Targets Rammed 1 | 1 . . . . . . . Kicked . | . . . . . . . . Crushed . | . . . . . . . . Highest Temperature 358 | . . 28 . 302 358 43 188 Average Temperature 55 | . . 13 . 93 172 13 94 Received Heat Transfer 1077 | . 264 . . . 90 615 108 Siege Activations . | . . . . . . . . Martial Activations . | . . . . . . . . Shielding Activations . | . . . . . . . . Robots Disrupted . | . . . . . . . . Combat Hostiles . | . . . . . . . . Robots Corrupted 12 | . 6 . 6 . . . . Combat Hostiles 8 | . 4 . 4 . . . . Parts Fried 14 | . 12 . 2 . . . . Impact Corruptions 35 | . 17 . 18 . . . . Robots Melted . | . . . . . . . . Combat Hostiles . | . . . . . . . . Parts Melted 1 | . . . . . . . 1 Heat Transferred 720 | . . . . 160 . . 560 Parts Sabotaged . | . . . . . . . . Parts Stolen . | . . . . . . . . Parts Stripped . | . . . . . . . . Power Chain Reactions . | . . . . . . . . Alert | -11 -10 -10 -10 -9 -8 -8 -8 ------- Run | Yrd Mat Min Exi Min Mat Gar Mat Maximum Alert Level 4 | . . . . . . 4 3 Low Security (%) 73 | 100 100 100 . 100 100 25 . Level 1 . | . . . . . . 3 . Level 2 15 | . . . . . . 41 71 Level 3 9 | . . . . . . 27 28 Level 4 . | . . . . . . 2 . Level 5 . | . . . . . . . . High Security . | . . . . . . . . Max Security . | . . . . . . . . Peak Influence 1133 | 10 85 70 . 33 46 1133 888 Initial 551 | . . . . . . 5 551 Average 190 | 1 21 7 . 3 4 518 629 Influence Increases 2530 | 15 318 79 20 61 92 1228 717 Destroy 0b10 Robot/C 1260 | . 200 60 . 40 20 560 380 Destroy 0b10 Robot/NC 75 | 15 20 5 20 5 5 . 5 Destroy Leader 224 | . 54 10 . 10 10 50 90 Allied During Kill 29 | . . . . . . . 29 Trap Triggered on 0b10 30 | . . . . . . 30 . Successful Hack 52 | . 26 . . . 5 21 . Disable Machine 30 | . . . . . . 30 . Anti-Garrison Action 300 | . . . . . . 300 . Destroy Structure 185 | . 3 4 . 6 7 117 48 Partial Spotted 60 | . . . . . . . 60 Lose Combat Pursuer 285 | . 15 . . . 45 120 105 Influence Decreases 1652 | 15 318 77 22 61 83 104 972 Entered New Map 588 | . . . 2 . . 4 582 Time Decay 636 | 15 288 77 20 43 83 . 110 Lost Part 218 | . 30 . . 18 . 80 90 Lost Ally 60 | . . . . . . 20 40 Purge Threat 150 | . . . . . . . 150 Squads Dispatched 11 | . 4 1 . . . . 6 Investigation 5 | . 3 1 . . . . 1 Extermination . | . . . . . . . . Reinforcement 4 | . 1 . . . . . 3 Assault 2 | . . . . . . . 2 Garrison . | . . . . . . . . Intercept . | . . . . . . . . Searches Triggered . | . . . . . . . . Construction Impeded . | . . . . . . . . Haulers Reinforced . | . . . . . . . . Active Scanning Responses . | . . . . . . . . Cargo Convoy Interrupts . | . . . . . . . . Stealth | -11 -10 -10 -10 -9 -8 -8 -8 --------- Run | Yrd Mat Min Exi Min Mat Gar Mat Distress Signals 5 | . 1 . . . 1 . 3 Communications Jammed . | . . . . . . . . Distress Signals . | . . . . . . . . Times Spotted 102 | . 23 3 . 3 7 39 27 Peak Tracking Total 13 | . 6 3 . 2 5 6 13 Tactical Retreats 8 | . 1 . . . 1 4 2 Traps | -11 -10 -10 -10 -9 -8 -8 -8 ------- Run | Yrd Mat Min Exi Min Mat Gar Mat Traps Triggered 7 | . 1 . . . . 4 2 Indirectly . | . . . . . . . . Trap Hack Attempts . | . . . . . . . . Triggered . | . . . . . . . . Disarmed . | . . . . . . . . Reprogrammed . | . . . . . . . . Reused 3 | . . . . . . 3 . Traps Extracted . | . . . . . . . . Installed 3 | . . . . . . 3 . Triggered 3 | . . . . . . 3 . Most Traps Carried 2 | . . . . . . 2 . Machines | -11 -10 -10 -10 -9 -8 -8 -8 ---------- Run | Yrd Mat Min Exi Min Mat Gar Mat Machines Disabled 5 | . . . . . . 5 . Max in Single Turn 1 | . . . . . . 1 . Garrison Access 1 | . . . . . . . 1 Garrison Relay 3 | . . . . . . 3 . Machines Repaired . | . . . . . . . . Machines Dismantled . | . . . . . . . . Machines Sabotaged . | . . . . . . . . Overloaded Fab Kills . | . . . . . . . . Hacking | -11 -10 -10 -10 -9 -8 -8 -8 --------- Run | Yrd Mat Min Exi Min Mat Gar Mat Machines Accessed 15 | . 3 1 2 . 3 3 3 Terminals 11 | . 3 . . . 2 3 3 Fabricators . | . . . . . . . . Repair Stations . | . . . . . . . . Recycling Units . | . . . . . . . . Scanalyzers . | . . . . . . . . Garrison Access 1 | . . . . . 1 . . Total Hacks 32 | . 7 1 5 . 7 4 8 Successful 19 | . 4 1 5 . 4 2 3 Failed 13 | . 3 . . . 3 2 5 Catastrophic 7 | . 1 . . . 1 1 4 Database Lockouts . | . . . . . . . . Manual 8 | . . . 1 . . . 7 Terminals 22 | . 7 . . . 3 4 8 Fabricators . | . . . . . . . . Repair Stations . | . . . . . . . . Recycling Units . | . . . . . . . . Scanalyzers . | . . . . . . . . Garrison Access 4 | . . . . . 4 . . Terminal Hacks 16 | . 4 1 5 . 3 2 1 Record 4 | . . . 4 . . . . Prototype ID Bank 2 | . 2 . . . . . . Open Door 2 | . . 1 . . . 1 . Branch Access Points 1 | . . . . . 1 . . Unreport Threat 1 | . . . . . . . 1 Transport Status 1 | . . . . . 1 . . Hauler Manifests 1 | . . . . . 1 . . Registered Components 1 | . 1 . . . . . . Zone Layout 1 | . 1 . . . . . . Patrol Navigation 1 | . . . . . . 1 . Proto ID Catalog 1 | . . . 1 . . . . Fabricator Hacks . | . . . . . . . . Repair Station Hacks . | . . . . . . . . Recycling Unit Hacks . | . . . . . . . . Scanalyzer . | . . . . . . . . Garrison Access Hacks 1 | . . . . . 1 . . Unlock Access 1 | . . . . . 1 . . Unauthorized Hacks 2 | . . . . . . . 2 Terminals 2 | . . . . . . . 2 Botnet 2 | . . . . . . . 2 Fabricators . | . . . . . . . . Repair Stations . | . . . . . . . . Recycling Units . | . . . . . . . . Scanalyzers . | . . . . . . . . Garrison Access . | . . . . . . . . Data Cores Recovered . | . . . . . . . . Used . | . . . . . . . . Hacking Detections 9 | . 3 . . . 2 1 3 Full Trace Events 2 | . 1 . . . . 1 . Feedback Events . | . . . . . . . . Feedback Blocked . | . . . . . . . . Robot Schematics Acquired . | . . . . . . . . Robots Built . | . . . . . . . . Authchips . | . . . . . . . . Time . | . . . . . . . . Total Robot Build Rating . | . . . . . . . . Part Schematics Acquired . | . . . . . . . . Parts Built . | . . . . . . . . Authchips . | . . . . . . . . Time . | . . . . . . . . Total Part Build Rating . | . . . . . . . . Part Studies Acquired . | . . . . . . . . Parts Repaired . | . . . . . . . . Time . | . . . . . . . . Parts Recycled . | . . . . . . . . Recycled Matter . | . . . . . . . . Retrieved Matter . | . . . . . . . . Retrieved Components . | . . . . . . . . Parts Scanalyzed . | . . . . . . . . Part Schematics Acquired . | . . . . . . . . Parts Damaged . | . . . . . . . . Bothacking | -11 -10 -10 -10 -9 -8 -8 -8 ------------ Run | Yrd Mat Min Exi Min Mat Gar Mat Used RIF Installer 2 | . . . . . . 2 . Patrol Navigation 1 | . . . . . . 1 . Robots Hacked . | . . . . . . . . Non-combat . | . . . . . . . . Combat . | . . . . . . . . Robot Hacks Applied . | . . . . . . . . Relay Couplers Released 14 | . . . . . . 11 3 Machine Destruction 14 | . . . . . . 11 3 Attached 3 | . . . . . . 3 . Fabnet Peak Effective % . | . . . . . . . . Robots Rewired 7 | . . . 4 . . 3 . Allies Hacked . | . . . . . . . . Hacks Repelled . | . . . . . . . . Allies | -11 -10 -10 -10 -9 -8 -8 -8 -------- Run | Yrd Mat Min Exi Min Mat Gar Mat Total Allies 7 | . . . 4 . . 3 . Largest Group 4 | . . . 4 4 . 3 2 Highest-Rated Group 93 | . . . 58 58 . 93 62 Highest-Rated Ally 31 | . . . 21 21 . 31 31 Total Orders . | . . . . . . . . Ally Attacks 47 | . . . . 5 . 17 25 Total Damage 724 | . . . . 33 . 311 380 Kills 10 | . . . . . . 3 7 Allies Corrupted . | . . . . . . . . Allies Melted 1 | . . . . . . 1 . Intel | -11 -10 -10 -10 -9 -8 -8 -8 ------- Run | Yrd Mat Min Exi Min Mat Gar Mat Active Infowar (turns) 1921 | 46 497 . . . 486 892 . Seismic 1432 | 46 497 . . . 486 403 . Cloaking 489 | . . . . . . 489 . Robot Analysis Total . | . . . . . . . . Derelict Logs Recovered 2 | . . 2 . . . . . Drone Launches . | . . . . . . . . Drone Recoveries . | . . . . . . . . Exploration | -11 -10 -10 -10 -9 -8 -8 -8 ------------- Run | Yrd Mat Min Exi Min Mat Gar Mat Turns Passed 6271 | 85 1083 951 1214 385 810 1512 231 Spaces Moved 3550 | 54 451 377 480 149 444 1290 305 Core 2 | 1 . . . . . 1 . Treads 2257 | . 436 377 480 149 444 371 . Legs . | . . . . . . . . Wheels 83 | 53 15 . . . . . 15 Hover 1208 | . . . . . . 918 290 Flight . | . . . . . . . . Fastest Speed 50 | 50 90 225 225 225 150 52 52 Average Speed 146 | 88 192 238 225 225 152 86 55 Slowest Speed 400 | 95 240 240 225 225 225 400 100 Overloaded Moves . | . . . . . . . . Propulsion Burnouts . | . . . . . . . . Robots Hopped . | . . . . . . . . Potential Cave-ins . | . . . . . . . . Cave-ins Triggered . | . . . . . . . . Exploration Rate (%) 52 | 4 60 72 90 35 28 88 43 Regions Visited 7 Branch Regions 3 Pre-discovered Areas 3 | . . 2 1 . . . . Known Exits Taken 1 | . . . . . 1 . . Unknown Exits Taken 5 | 1 1 1 1 1 . . . Scrap Searched 3 | . . 1 . 2 . . . Spaces Dug 57 | . 3 2 . . 7 42 3 Terrain Destroyed 152 | . 3 4 . 23 7 70 45 Melee 55 | . 3 . . . 7 42 3 Projectile 10 | . . 4 . 6 . . . AOE 87 | . . . . 17 . 28 42 Terrain Rammed . | . . . . . . . . Walls Destroyed . | . . . . . . . . Machines Disabled . | . . . . . . . . Actions | -11 -10 -10 -10 -9 -8 -8 -8 --------- Run | Yrd Mat Min Exi Min Mat Gar Mat Total 4263 | 74 585 410 580 177 557 1530 350 Wait 158 | 2 51 . . . 61 28 16 Move 3542 | 53 450 376 479 148 443 1288 305 Hop . | . . . . . . . . Pick Up 60 | 4 18 7 8 3 10 7 3 Fast Attach 23 | 7 3 . . 1 2 8 2 Attach 16 | . 3 . . 4 3 4 2 Detach 3 | . . . . 1 . 1 1 Swap 40 | . 5 5 2 2 10 11 5 Drop 42 | . 5 5 9 . 10 12 1 Fire 92 | 7 3 16 . 14 . 43 9 Melee 172 | . 47 1 22 4 18 74 6 Ram 1 | 1 . . . . . . . Kick . | . . . . . . . . Crush . | . . . . . . . . Escape Stasis 37 | . . . . . . 37 . Rewire 74 | . . . 60 . . 14 . Trap 3 | . . . . . . 3 . Miscellaneous . | . . . . . . . . Route ------- -11/Scrapyard -10/Materials (discovered 2 exits: *Mat / *Min) -10/Mines (discovered 3 exits: *Mat x2 / *Exi) -10/Exiles -9/Mines -8/Materials -8/Garrison (discovered 3 exits: *Mat x3) -8/Materials (discovered 1 exit: [*Fac]) History --------- Turn | Location | Event 19 | -11/Scrapyard | Discovered new exit (range 16) 86 | -11/Scrapyard | Entered Materials 243 | -10/Materials | Discovered new exit (range 16) 303 | -10/Materials | Build established: Mutant 606 | -10/Materials | Core integrity fell below 50% 1122 | -10/Materials | Discovered new exit (range 6) 1169 | -10/Materials | Entered Mines 1170 | -10/Mines | Learned location of Storage (-7) 1181 | -10/Mines | Deemed a non-threat by the Exiles lab entrance 1181 | -10/Mines | Discovered new exit (range 5) 1215 | -10/Mines | Learned location of Zion (-7) 1753 | -10/Mines | Discovered new exit (range 16) 1822 | -10/Mines | Identified exit to Materials 1969 | -10/Mines | Met a Derelict shopkeep closing up shop 2120 | -10/Mines | Entered Exiles 2120 | -10/Exiles | Found Exiles lab destroyed 2438 | -10/Exiles | Opened EX-Vault 2450 | -10/Exiles | Found Firepult 3309 | -10/Exiles | Discovered new exit (range 11) 3334 | -10/Exiles | Entered Mines 3334 | -9/Mines | Accompanied by 4 allies 3410 | -9/Mines | Assembled infested the area 3475 | -9/Mines | Lost 4 allies 3510 | -9/Mines | Lost 4 parts (1u3w) 3618 | -9/Mines | Discovered new exit (range 7) 3719 | -9/Mines | Entered Materials 3719 | -8/Materials | Evolved 4 slots: Propulsion x1, Utility x2, Weapon x1 4476 | -8/Materials | Identified exit to Garrison 4529 | -8/Materials | Entered Garrison 4561 | -8/Garrison | Installed Relay Interface Framework 4645 | -8/Garrison | Triggered checkpoint 4700 | -8/Garrison | Garrison Relay disabled 4893 | -8/Garrison | Triggered checkpoint 4961 | -8/Garrison | Destroyed 9 combat bots 5001 | -8/Garrison | Discovered new exit (range 13) 5149 | -8/Garrison | Triggered checkpoint 5197 | -8/Garrison | Garrison Relay disabled 5209 | -8/Garrison | Lost 5 parts (2n2u1w) 5423 | -8/Garrison | Triggered checkpoint 5451 | -8/Garrison | Triggered checkpoint 5577 | -8/Garrison | Triggered checkpoint 5611 | -8/Garrison | Expanded RIF knowledge: Patrol Navigation 5633 | -8/Garrison | Discovered new exit (range 15) 5750 | -8/Garrison | Discovered new exit (range 14) 5793 | -8/Garrison | Triggered checkpoint 5881 | -8/Garrison | Triggered checkpoint 6003 | -8/Garrison | Garrison Relay disabled 6041 | -8/Garrison | Entered Materials 6041 | -8/Materials | Accompanied by 2 allies 6187 | -8/Materials | Discovered new exit (range 4) 6251 | -8/Materials | Core integrity fell below 50% 6272 | -8/Materials | Self-destructed Last Messages --------------- 06243_ Cmb. Airjet destroyed. 06243_ Relay Coupler [NC] destroyed. 06243_ Critical hit (Blast). 06244_ W-25 Informer sends out distress signal. 06250_ Prc. Assault Rifle destroyed. 06255_ Cld. Airjet destroyed. 06258_ Detecting nearby Garrison Access. 06260_ S-10 Pest destroyed. 06260_ Flight Unit melted. 06260_ S-10 Pest destroyed. 06266_ Com. Wheel destroyed. 06272_ Triggered Proton Bomb Trap. 06272_ A bubble of electromagnetic force engulfs the area. 06272_ ALERT: Garrison Access compromised, dispatching multiple assault carriers. 06272_ Garrison Access disabled. 06272_ Relay Coupler [Duelist] tumbles out of Garrison Access. 06272_ Relay Coupler [Behemoth] tumbles out of Garrison Access. 06272_ Relay Coupler [Duelist] tumbles out of Garrison Access. 06272_ Processing Tank disabled. Map ----- +----------------------------------------------------+ | ??????######????# ! #?? | | ??????# ! ???# #?? | | ??????# ??# #?? | | ??????#[ ??# ! #?? | | ??????? ?# % #?? | | ??????# ? !!= ?##"####+"######+ | | ??????# != # | | ??????# != # | | ??????# + ############# | | ??????????#######=% #######????? | | ?????????????####%[" ????? | | ????????###### * """" ????? | | ????????+ [! # """" ????? | | ????????# [ + """" ????? | | ????????# !! # #???? | | ????????# ![ #########???? | | ????????# ![ #??????????? | | ????????# #??????????? | | ????????# #??????????? | | ????????+ #??????????? | | ????????# ##########??????????? | | ?????#### #???????????????????? | | ?????# #???????????????????? | | ?????# #???????????????????? | | ???#####;#####?????????????????? | | ???#!! @ #?????????????????? | | ???# ! ! "" #?????????????????? | | ???# " " #?????????????????? | | ???# " " " #?????????????????? | | ???# "" #?????????????????? | | ???# """ #?????????????????? | | ???# #?????????????????? | | ???# #?????????????????? | | ???###########?????????????????? | | ???????????????????????????????? | | | | | | | | | | | | | | | | | | | | | | | | | | | | | | | +----------------------------------------------------+ Best States ------------- Heat Dissipation 31 Energy Generation 14 Energy Capacity 250 Matter Stores 500 Matter Capacity 500 Sight Range 16 Terrain Scan Density 10 Cloak Strength 3 Armor Coverage 300 Resistance: KI 20 Evasion (%) 54 Targeting Accuracy 6 Recoil Reduction 3 Relay Coupler Types 2 Relay Coupler Value 57 Item Schematics ----------------- None Robot Schematics ------------------ None Fabricated ------------ Nothing Repaired ---------- Nothing Studied --------- None Alien Tech Used ----------------- None Achievements -------------- None Challenges ------------ None Game ------ Seed TerrabombSpreadSpiker Manual? 0 Play Time 00:45:27 Cumulative 493.4 hours Start 2026.09.14 @ 23:12:23 End 2026.09.14 @ 23:57:58 Sessions 1 Manual Loads 0 Difficulty Rogue Special Mode None Game No. 366 Rogue 366 Adventurer 0 Explorer 0 Win Type - Total 10 Types 4/0/4/2/0/0/0/0/0/0 Lore% 63 Gallery% 72 Achievement% 59 Wizard Run 0 Options --------- Layout 2 ASCII 0 Keyboard 1 Movement Vi Keybinds 0 Fullscreen 2 Font 32/Smallcaps Map View 77x44 Zoom Use 0% Tactical HUD 1 Map Filters NONE Filters NONE Steam 1 RUN: d4116bf5-915f-4b2c-a7e6-45e9e7a723c2